{"text_format":"3","workbook":"xlsx","n_sheets":5,"sheets":["Fatura","Müşteriler","Faturalar - Ana","Fatura Ayrıntıları","Bu Fatura İzleyicisi Hakkında"],"not_rendered":{"defined_names":8},"read":"whole","date_system":"1900"}

{"sheet":"Fatura","index":0,"n_rows":39,"n_cols":7,"rows_kept":39,"merged":[[1,1,1,2],[1,3,1,4],[1,5,1,6],[2,1,2,2],[2,3,2,4],[2,5,2,6],[3,3,3,4],[4,3,4,4],[5,3,5,4],[37,1,37,4],[38,1,38,4]]}
[null,"Şirket Adı"]
[null,"Açık Adres",null,"T: Telefon Numarası",null,"E-posta"]
[null,"Şehir, Posta Kodu",null,"F: Faks Numarası",null,"Web Sitesi"]
[null,"Faturalanan:",{"$f":"IFERROR(VLOOKUP(VLOOKUP(rngFatura,FaturalarAna[],2,FALSE),MüşteriListesi[],3,TRUE),\"\")","v":"Contoso, Ltd"},{"$f":"\"Telefon: \"&IFERROR(VLOOKUP(VLOOKUP(rngFatura,FaturalarAna[],2,FALSE),MüşteriListesi[],9,FALSE),\"\")","v":"Telefon: 432-555-0189"},null,"Fatura No:","3-456-2"]
[null,"Adres:",{"$f":"IFERROR(IF((VLOOKUP(VLOOKUP(rngFatura,FaturalarAna[],2,FALSE),MüşteriListesi[],5,FALSE))=\"\",\"\",(VLOOKUP(VLOOKUP(rngFatura,FaturalarAna[],2,FALSE),MüşteriListesi[],5,FALSE))),\"\")","v":"567 Walnut Lane"},{"$f":"\"Faks:     \"&IFERROR(VLOOKUP(VLOOKUP(rngFatura,FaturalarAna[],2,FALSE),MüşteriListesi[],11,FALSE),\"\")","v":"Faks:     432-555-0123"},null,"Fatura Tarihi:",{"$f":"IFERROR(IF(VLOOKUP(rngFatura,FaturalarAna[],3,FALSE)=\"\",\"\",VLOOKUP(rngFatura,FaturalarAna[],3,FALSE)),\"\")","v":"2019-08-08"}]
[null,null,{"$f":"IFERROR(VLOOKUP(VLOOKUP(rngFatura,FaturalarAna[],2,FALSE),MüşteriListesi[],6,FALSE)&\", \"& VLOOKUP(VLOOKUP(G4,FaturalarAna[],2,FALSE),MüşteriListesi[],7,FALSE)&\" \"&VLOOKUP(VLOOKUP(G4,FaturalarAna[],2,FALSE),MüşteriListesi[],8,FALSE),\"\")","v":"Moline, MO 098765"},{"$f":"\"E-posta: \"&IFERROR(VLOOKUP(VLOOKUP(rngFatura,FaturalarAna[],2,FALSE),MüşteriListesi[],10,FALSE),\"\")","v":"E-posta: birisi@example.com"}]
[null,{"$f":"\"Fatura Konusu: \"&IFERROR(VLOOKUP(rngFatura,FaturalarAna[],4),\"\")","v":"Fatura Konusu: Proje 2"}]
[null,"Öğe No","Açıklama","Mkt","Birim Fiyatı","İndirim","Fiyat"]
[null,{"$f":"IFERROR(INDEX(FaturaAyrıntıları[],SMALL(IF(FaturaAyrıntıları[Fatura No]=rngFatura,ROW(FaturaAyrıntıları[])-ROW(FaturaAyrıntıları[#Headers])), ROW(1:1)), MATCH($B$8, FaturaAyrıntıları[#Headers], 0)),\"\")","v":"Z4567"},{"$f":"IFERROR(INDEX(FaturaAyrıntıları[],SMALL(IF(FaturaAyrıntıları[Fatura No]=rngFatura,ROW(FaturaAyrıntıları[])-ROW(FaturaAyrıntıları[#Headers])), ROW(1:1)), MATCH($C$8, FaturaAyrıntıları[#Headers], 0)),\"\")","v":"Fatura 3-456-2 Veri 1"},{"$f":"IFERROR(INDEX(FaturaAyrıntıları[],SMALL(IF(FaturaAyrıntıları[Fatura No]=rngFatura,ROW(FaturaAyrıntıları[])-ROW(FaturaAyrıntıları[#Headers])), ROW(1:1)), MATCH($D$8, FaturaAyrıntıları[#Headers], 0)),\"\")","v":39},{"$f":"IFERROR(INDEX(FaturaAyrıntıları[],SMALL(IF(FaturaAyrıntıları[Fatura No]=rngFatura,ROW(FaturaAyrıntıları[])-ROW(FaturaAyrıntıları[#Headers])), ROW(1:1)), MATCH($E$8, FaturaAyrıntıları[#Headers], 0)),\"\")","v":{"v":5,"d":"5.00 ₺"}},{"$f":"IFERROR(INDEX(FaturaAyrıntıları[],SMALL(IF(FaturaAyrıntıları[Fatura No]=rngFatura,ROW(FaturaAyrıntıları[])-ROW(FaturaAyrıntıları[#Headers])), ROW(1:1)), MATCH($F$8, FaturaAyrıntıları[#Headers], 0)),\"\")","v":0},{"$f":"IFERROR((D9*E9)-F9,\"\")","v":{"v":195,"d":"195.00 ₺"}}]
[null,{"$f":"IFERROR(INDEX(FaturaAyrıntıları[],SMALL(IF(FaturaAyrıntıları[Fatura No]=rngFatura,ROW(FaturaAyrıntıları[])-ROW(FaturaAyrıntıları[#Headers])), ROW(2:2)), MATCH($B$8, FaturaAyrıntıları[#Headers], 0)),\"\")","v":"Z4568"},{"$f":"IFERROR(INDEX(FaturaAyrıntıları[],SMALL(IF(FaturaAyrıntıları[Fatura No]=rngFatura,ROW(FaturaAyrıntıları[])-ROW(FaturaAyrıntıları[#Headers])), ROW(2:2)), MATCH($C$8, FaturaAyrıntıları[#Headers], 0)),\"\")","v":"Fatura 3-456-2 Veri 2"},{"$f":"IFERROR(INDEX(FaturaAyrıntıları[],SMALL(IF(FaturaAyrıntıları[Fatura No]=rngFatura,ROW(FaturaAyrıntıları[])-ROW(FaturaAyrıntıları[#Headers])), ROW(2:2)), MATCH($D$8, FaturaAyrıntıları[#Headers], 0)),\"\")","v":40},{"$f":"IFERROR(INDEX(FaturaAyrıntıları[],SMALL(IF(FaturaAyrıntıları[Fatura No]=rngFatura,ROW(FaturaAyrıntıları[])-ROW(FaturaAyrıntıları[#Headers])), ROW(2:2)), MATCH($E$8, FaturaAyrıntıları[#Headers], 0)),\"\")","v":{"v":4,"d":"4.00 ₺"}},{"$f":"IFERROR(INDEX(FaturaAyrıntıları[],SMALL(IF(FaturaAyrıntıları[Fatura No]=rngFatura,ROW(FaturaAyrıntıları[])-ROW(FaturaAyrıntıları[#Headers])), ROW(2:2)), MATCH($F$8, FaturaAyrıntıları[#Headers], 0)),\"\")","v":{"v":5,"d":"5.00 ₺"}},{"v":155,"d":"155.00 ₺"}]
[null,{"$f":"IFERROR(INDEX(FaturaAyrıntıları[],SMALL(IF(FaturaAyrıntıları[Fatura No]=rngFatura,ROW(FaturaAyrıntıları[])-ROW(FaturaAyrıntıları[#Headers])), ROW(3:3)), MATCH($B$8, FaturaAyrıntıları[#Headers], 0)),\"\")","v":"Z4569"},{"$f":"IFERROR(INDEX(FaturaAyrıntıları[],SMALL(IF(FaturaAyrıntıları[Fatura No]=rngFatura,ROW(FaturaAyrıntıları[])-ROW(FaturaAyrıntıları[#Headers])), ROW(3:3)), MATCH($C$8, FaturaAyrıntıları[#Headers], 0)),\"\")","v":"Fatura 3-456-2 Veri 3"},{"$f":"IFERROR(INDEX(FaturaAyrıntıları[],SMALL(IF(FaturaAyrıntıları[Fatura No]=rngFatura,ROW(FaturaAyrıntıları[])-ROW(FaturaAyrıntıları[#Headers])), ROW(3:3)), MATCH($D$8, FaturaAyrıntıları[#Headers], 0)),\"\")","v":30},{"$f":"IFERROR(INDEX(FaturaAyrıntıları[],SMALL(IF(FaturaAyrıntıları[Fatura No]=rngFatura,ROW(FaturaAyrıntıları[])-ROW(FaturaAyrıntıları[#Headers])), ROW(3:3)), MATCH($E$8, FaturaAyrıntıları[#Headers], 0)),\"\")","v":{"v":6,"d":"6.00 ₺"}},{"$f":"IFERROR(INDEX(FaturaAyrıntıları[],SMALL(IF(FaturaAyrıntıları[Fatura No]=rngFatura,ROW(FaturaAyrıntıları[])-ROW(FaturaAyrıntıları[#Headers])), ROW(3:3)), MATCH($F$8, FaturaAyrıntıları[#Headers], 0)),\"\")","v":{"v":7,"d":"7.00 ₺"}},{"v":173,"d":"173.00 ₺"}]
[null,{"$f":"IFERROR(INDEX(FaturaAyrıntıları[],SMALL(IF(FaturaAyrıntıları[Fatura No]=rngFatura,ROW(FaturaAyrıntıları[])-ROW(FaturaAyrıntıları[#Headers])), ROW(4:4)), MATCH($B$8, FaturaAyrıntıları[#Headers], 0)),\"\")","v":"Z4570"},{"$f":"IFERROR(INDEX(FaturaAyrıntıları[],SMALL(IF(FaturaAyrıntıları[Fatura No]=rngFatura,ROW(FaturaAyrıntıları[])-ROW(FaturaAyrıntıları[#Headers])), ROW(4:4)), MATCH($C$8, FaturaAyrıntıları[#Headers], 0)),\"\")","v":"Fatura 3-456-2 Veri 4"},{"$f":"IFERROR(INDEX(FaturaAyrıntıları[],SMALL(IF(FaturaAyrıntıları[Fatura No]=rngFatura,ROW(FaturaAyrıntıları[])-ROW(FaturaAyrıntıları[#Headers])), ROW(4:4)), MATCH($D$8, FaturaAyrıntıları[#Headers], 0)),\"\")","v":40},{"$f":"IFERROR(INDEX(FaturaAyrıntıları[],SMALL(IF(FaturaAyrıntıları[Fatura No]=rngFatura,ROW(FaturaAyrıntıları[])-ROW(FaturaAyrıntıları[#Headers])), ROW(4:4)), MATCH($E$8, FaturaAyrıntıları[#Headers], 0)),\"\")","v":{"v":7,"d":"7.00 ₺"}},{"$f":"IFERROR(INDEX(FaturaAyrıntıları[],SMALL(IF(FaturaAyrıntıları[Fatura No]=rngFatura,ROW(FaturaAyrıntıları[])-ROW(FaturaAyrıntıları[#Headers])), ROW(4:4)), MATCH($F$8, FaturaAyrıntıları[#Headers], 0)),\"\")","v":0},{"v":280,"d":"280.00 ₺"}]
[null,{"$f":"IFERROR(INDEX(FaturaAyrıntıları[],SMALL(IF(FaturaAyrıntıları[Fatura No]=rngFatura,ROW(FaturaAyrıntıları[])-ROW(FaturaAyrıntıları[#Headers])), ROW(5:5)), MATCH($B$8, FaturaAyrıntıları[#Headers], 0)),\"\")","v":"Z4571"},{"$f":"IFERROR(INDEX(FaturaAyrıntıları[],SMALL(IF(FaturaAyrıntıları[Fatura No]=rngFatura,ROW(FaturaAyrıntıları[])-ROW(FaturaAyrıntıları[#Headers])), ROW(5:5)), MATCH($C$8, FaturaAyrıntıları[#Headers], 0)),\"\")","v":"Fatura 3-456-2 Veri 5"},{"$f":"IFERROR(INDEX(FaturaAyrıntıları[],SMALL(IF(FaturaAyrıntıları[Fatura No]=rngFatura,ROW(FaturaAyrıntıları[])-ROW(FaturaAyrıntıları[#Headers])), ROW(5:5)), MATCH($D$8, FaturaAyrıntıları[#Headers], 0)),\"\")","v":10},{"$f":"IFERROR(INDEX(FaturaAyrıntıları[],SMALL(IF(FaturaAyrıntıları[Fatura No]=rngFatura,ROW(FaturaAyrıntıları[])-ROW(FaturaAyrıntıları[#Headers])), ROW(5:5)), MATCH($E$8, FaturaAyrıntıları[#Headers], 0)),\"\")","v":{"v":4,"d":"4.00 ₺"}},{"$f":"IFERROR(INDEX(FaturaAyrıntıları[],SMALL(IF(FaturaAyrıntıları[Fatura No]=rngFatura,ROW(FaturaAyrıntıları[])-ROW(FaturaAyrıntıları[#Headers])), ROW(5:5)), MATCH($F$8, FaturaAyrıntıları[#Headers], 0)),\"\")","v":0},{"v":40,"d":"40.00 ₺"}]
[null,{"$f":"IFERROR(INDEX(FaturaAyrıntıları[],SMALL(IF(FaturaAyrıntıları[Fatura No]=rngFatura,ROW(FaturaAyrıntıları[])-ROW(FaturaAyrıntıları[#Headers])), ROW(6:6)), MATCH($B$8, FaturaAyrıntıları[#Headers], 0)),\"\")","v":"Z4572"},{"$f":"IFERROR(INDEX(FaturaAyrıntıları[],SMALL(IF(FaturaAyrıntıları[Fatura No]=rngFatura,ROW(FaturaAyrıntıları[])-ROW(FaturaAyrıntıları[#Headers])), ROW(6:6)), MATCH($C$8, FaturaAyrıntıları[#Headers], 0)),\"\")","v":"Fatura 3-456-2 Veri 6"},{"$f":"IFERROR(INDEX(FaturaAyrıntıları[],SMALL(IF(FaturaAyrıntıları[Fatura No]=rngFatura,ROW(FaturaAyrıntıları[])-ROW(FaturaAyrıntıları[#Headers])), ROW(6:6)), MATCH($D$8, FaturaAyrıntıları[#Headers], 0)),\"\")","v":5},{"$f":"IFERROR(INDEX(FaturaAyrıntıları[],SMALL(IF(FaturaAyrıntıları[Fatura No]=rngFatura,ROW(FaturaAyrıntıları[])-ROW(FaturaAyrıntıları[#Headers])), ROW(6:6)), MATCH($E$8, FaturaAyrıntıları[#Headers], 0)),\"\")","v":{"v":8,"d":"8.00 ₺"}},{"$f":"IFERROR(INDEX(FaturaAyrıntıları[],SMALL(IF(FaturaAyrıntıları[Fatura No]=rngFatura,ROW(FaturaAyrıntıları[])-ROW(FaturaAyrıntıları[#Headers])), ROW(6:6)), MATCH($F$8, FaturaAyrıntıları[#Headers], 0)),\"\")","v":0},{"v":40,"d":"40.00 ₺"}]
[null,{"$f":"IFERROR(INDEX(FaturaAyrıntıları[],SMALL(IF(FaturaAyrıntıları[Fatura No]=rngFatura,ROW(FaturaAyrıntıları[])-ROW(FaturaAyrıntıları[#Headers])), ROW(7:7)), MATCH($B$8, FaturaAyrıntıları[#Headers], 0)),\"\")","v":"Z4573"},{"$f":"IFERROR(INDEX(FaturaAyrıntıları[],SMALL(IF(FaturaAyrıntıları[Fatura No]=rngFatura,ROW(FaturaAyrıntıları[])-ROW(FaturaAyrıntıları[#Headers])), ROW(7:7)), MATCH($C$8, FaturaAyrıntıları[#Headers], 0)),\"\")","v":"Fatura 3-456-2 Veri 7"},{"$f":"IFERROR(INDEX(FaturaAyrıntıları[],SMALL(IF(FaturaAyrıntıları[Fatura No]=rngFatura,ROW(FaturaAyrıntıları[])-ROW(FaturaAyrıntıları[#Headers])), ROW(7:7)), MATCH($D$8, FaturaAyrıntıları[#Headers], 0)),\"\")","v":70},{"$f":"IFERROR(INDEX(FaturaAyrıntıları[],SMALL(IF(FaturaAyrıntıları[Fatura No]=rngFatura,ROW(FaturaAyrıntıları[])-ROW(FaturaAyrıntıları[#Headers])), ROW(7:7)), MATCH($E$8, FaturaAyrıntıları[#Headers], 0)),\"\")","v":{"v":6,"d":"6.00 ₺"}},{"$f":"IFERROR(INDEX(FaturaAyrıntıları[],SMALL(IF(FaturaAyrıntıları[Fatura No]=rngFatura,ROW(FaturaAyrıntıları[])-ROW(FaturaAyrıntıları[#Headers])), ROW(7:7)), MATCH($F$8, FaturaAyrıntıları[#Headers], 0)),\"\")","v":0},{"v":420,"d":"420.00 ₺"}]
[null,{"$f":"IFERROR(INDEX(FaturaAyrıntıları[],SMALL(IF(FaturaAyrıntıları[Fatura No]=rngFatura,ROW(FaturaAyrıntıları[])-ROW(FaturaAyrıntıları[#Headers])), ROW(8:8)), MATCH($B$8, FaturaAyrıntıları[#Headers], 0)),\"\")","v":"Z4574"},{"$f":"IFERROR(INDEX(FaturaAyrıntıları[],SMALL(IF(FaturaAyrıntıları[Fatura No]=rngFatura,ROW(FaturaAyrıntıları[])-ROW(FaturaAyrıntıları[#Headers])), ROW(8:8)), MATCH($C$8, FaturaAyrıntıları[#Headers], 0)),\"\")","v":"Fatura 3-456-2 Veri 8"},{"$f":"IFERROR(INDEX(FaturaAyrıntıları[],SMALL(IF(FaturaAyrıntıları[Fatura No]=rngFatura,ROW(FaturaAyrıntıları[])-ROW(FaturaAyrıntıları[#Headers])), ROW(8:8)), MATCH($D$8, FaturaAyrıntıları[#Headers], 0)),\"\")","v":25},{"$f":"IFERROR(INDEX(FaturaAyrıntıları[],SMALL(IF(FaturaAyrıntıları[Fatura No]=rngFatura,ROW(FaturaAyrıntıları[])-ROW(FaturaAyrıntıları[#Headers])), ROW(8:8)), MATCH($E$8, FaturaAyrıntıları[#Headers], 0)),\"\")","v":{"v":4,"d":"4.00 ₺"}},{"$f":"IFERROR(INDEX(FaturaAyrıntıları[],SMALL(IF(FaturaAyrıntıları[Fatura No]=rngFatura,ROW(FaturaAyrıntıları[])-ROW(FaturaAyrıntıları[#Headers])), ROW(8:8)), MATCH($F$8, FaturaAyrıntıları[#Headers], 0)),\"\")","v":0},{"v":100,"d":"100.00 ₺"}]
[null,{"$f":"IFERROR(INDEX(FaturaAyrıntıları[],SMALL(IF(FaturaAyrıntıları[Fatura No]=rngFatura,ROW(FaturaAyrıntıları[])-ROW(FaturaAyrıntıları[#Headers])), ROW(9:9)), MATCH($B$8, FaturaAyrıntıları[#Headers], 0)),\"\")","v":"Z4575"},{"$f":"IFERROR(INDEX(FaturaAyrıntıları[],SMALL(IF(FaturaAyrıntıları[Fatura No]=rngFatura,ROW(FaturaAyrıntıları[])-ROW(FaturaAyrıntıları[#Headers])), ROW(9:9)), MATCH($C$8, FaturaAyrıntıları[#Headers], 0)),\"\")","v":"Fatura 3-456-2 Veri 9"},{"$f":"IFERROR(INDEX(FaturaAyrıntıları[],SMALL(IF(FaturaAyrıntıları[Fatura No]=rngFatura,ROW(FaturaAyrıntıları[])-ROW(FaturaAyrıntıları[#Headers])), ROW(9:9)), MATCH($D$8, FaturaAyrıntıları[#Headers], 0)),\"\")","v":5},{"$f":"IFERROR(INDEX(FaturaAyrıntıları[],SMALL(IF(FaturaAyrıntıları[Fatura No]=rngFatura,ROW(FaturaAyrıntıları[])-ROW(FaturaAyrıntıları[#Headers])), ROW(9:9)), MATCH($E$8, FaturaAyrıntıları[#Headers], 0)),\"\")","v":{"v":7,"d":"7.00 ₺"}},{"$f":"IFERROR(INDEX(FaturaAyrıntıları[],SMALL(IF(FaturaAyrıntıları[Fatura No]=rngFatura,ROW(FaturaAyrıntıları[])-ROW(FaturaAyrıntıları[#Headers])), ROW(9:9)), MATCH($F$8, FaturaAyrıntıları[#Headers], 0)),\"\")","v":{"v":3,"d":"3.00 ₺"}},{"v":32,"d":"32.00 ₺"}]
[null,{"$f":"IFERROR(INDEX(FaturaAyrıntıları[],SMALL(IF(FaturaAyrıntıları[Fatura No]=rngFatura,ROW(FaturaAyrıntıları[])-ROW(FaturaAyrıntıları[#Headers])), ROW(10:10)), MATCH($B$8, FaturaAyrıntıları[#Headers], 0)),\"\")","v":"Z4576"},{"$f":"IFERROR(INDEX(FaturaAyrıntıları[],SMALL(IF(FaturaAyrıntıları[Fatura No]=rngFatura,ROW(FaturaAyrıntıları[])-ROW(FaturaAyrıntıları[#Headers])), ROW(10:10)), MATCH($C$8, FaturaAyrıntıları[#Headers], 0)),\"\")","v":"Fatura 3-456-2 Veri 10"},{"$f":"IFERROR(INDEX(FaturaAyrıntıları[],SMALL(IF(FaturaAyrıntıları[Fatura No]=rngFatura,ROW(FaturaAyrıntıları[])-ROW(FaturaAyrıntıları[#Headers])), ROW(10:10)), MATCH($D$8, FaturaAyrıntıları[#Headers], 0)),\"\")","v":80},{"$f":"IFERROR(INDEX(FaturaAyrıntıları[],SMALL(IF(FaturaAyrıntıları[Fatura No]=rngFatura,ROW(FaturaAyrıntıları[])-ROW(FaturaAyrıntıları[#Headers])), ROW(10:10)), MATCH($E$8, FaturaAyrıntıları[#Headers], 0)),\"\")","v":{"v":1,"d":"1.00 ₺"}},{"$f":"IFERROR(INDEX(FaturaAyrıntıları[],SMALL(IF(FaturaAyrıntıları[Fatura No]=rngFatura,ROW(FaturaAyrıntıları[])-ROW(FaturaAyrıntıları[#Headers])), ROW(10:10)), MATCH($F$8, FaturaAyrıntıları[#Headers], 0)),\"\")","v":0},{"v":80,"d":"80.00 ₺"}]
[null,{"$f":"IFERROR(INDEX(FaturaAyrıntıları[],SMALL(IF(FaturaAyrıntıları[Fatura No]=rngFatura,ROW(FaturaAyrıntıları[])-ROW(FaturaAyrıntıları[#Headers])), ROW(11:11)), MATCH($B$8, FaturaAyrıntıları[#Headers], 0)),\"\")","v":"Z4577"},{"$f":"IFERROR(INDEX(FaturaAyrıntıları[],SMALL(IF(FaturaAyrıntıları[Fatura No]=rngFatura,ROW(FaturaAyrıntıları[])-ROW(FaturaAyrıntıları[#Headers])), ROW(11:11)), MATCH($C$8, FaturaAyrıntıları[#Headers], 0)),\"\")","v":"Fatura 3-456-2 Veri 11"},{"$f":"IFERROR(INDEX(FaturaAyrıntıları[],SMALL(IF(FaturaAyrıntıları[Fatura No]=rngFatura,ROW(FaturaAyrıntıları[])-ROW(FaturaAyrıntıları[#Headers])), ROW(11:11)), MATCH($D$8, FaturaAyrıntıları[#Headers], 0)),\"\")","v":65},{"$f":"IFERROR(INDEX(FaturaAyrıntıları[],SMALL(IF(FaturaAyrıntıları[Fatura No]=rngFatura,ROW(FaturaAyrıntıları[])-ROW(FaturaAyrıntıları[#Headers])), ROW(11:11)), MATCH($E$8, FaturaAyrıntıları[#Headers], 0)),\"\")","v":{"v":7,"d":"7.00 ₺"}},{"$f":"IFERROR(INDEX(FaturaAyrıntıları[],SMALL(IF(FaturaAyrıntıları[Fatura No]=rngFatura,ROW(FaturaAyrıntıları[])-ROW(FaturaAyrıntıları[#Headers])), ROW(11:11)), MATCH($F$8, FaturaAyrıntıları[#Headers], 0)),\"\")","v":0},{"v":455,"d":"455.00 ₺"}]
[null,{"$f":"IFERROR(INDEX(FaturaAyrıntıları[],SMALL(IF(FaturaAyrıntıları[Fatura No]=rngFatura,ROW(FaturaAyrıntıları[])-ROW(FaturaAyrıntıları[#Headers])), ROW(12:12)), MATCH($B$8, FaturaAyrıntıları[#Headers], 0)),\"\")","v":"Z4578"},{"$f":"IFERROR(INDEX(FaturaAyrıntıları[],SMALL(IF(FaturaAyrıntıları[Fatura No]=rngFatura,ROW(FaturaAyrıntıları[])-ROW(FaturaAyrıntıları[#Headers])), ROW(12:12)), MATCH($C$8, FaturaAyrıntıları[#Headers], 0)),\"\")","v":"Fatura 3-456-2 Veri 12"},{"$f":"IFERROR(INDEX(FaturaAyrıntıları[],SMALL(IF(FaturaAyrıntıları[Fatura No]=rngFatura,ROW(FaturaAyrıntıları[])-ROW(FaturaAyrıntıları[#Headers])), ROW(12:12)), MATCH($D$8, FaturaAyrıntıları[#Headers], 0)),\"\")","v":44},{"$f":"IFERROR(INDEX(FaturaAyrıntıları[],SMALL(IF(FaturaAyrıntıları[Fatura No]=rngFatura,ROW(FaturaAyrıntıları[])-ROW(FaturaAyrıntıları[#Headers])), ROW(12:12)), MATCH($E$8, FaturaAyrıntıları[#Headers], 0)),\"\")","v":{"v":1,"d":"1.00 ₺"}},{"$f":"IFERROR(INDEX(FaturaAyrıntıları[],SMALL(IF(FaturaAyrıntıları[Fatura No]=rngFatura,ROW(FaturaAyrıntıları[])-ROW(FaturaAyrıntıları[#Headers])), ROW(12:12)), MATCH($F$8, FaturaAyrıntıları[#Headers], 0)),\"\")","v":0},{"v":44,"d":"44.00 ₺"}]
[null,{"$f":"IFERROR(INDEX(FaturaAyrıntıları[],SMALL(IF(FaturaAyrıntıları[Fatura No]=rngFatura,ROW(FaturaAyrıntıları[])-ROW(FaturaAyrıntıları[#Headers])), ROW(13:13)), MATCH($B$8, FaturaAyrıntıları[#Headers], 0)),\"\")","v":""},{"$f":"IFERROR(INDEX(FaturaAyrıntıları[],SMALL(IF(FaturaAyrıntıları[Fatura No]=rngFatura,ROW(FaturaAyrıntıları[])-ROW(FaturaAyrıntıları[#Headers])), ROW(13:13)), MATCH($C$8, FaturaAyrıntıları[#Headers], 0)),\"\")","v":""},{"$f":"IFERROR(INDEX(FaturaAyrıntıları[],SMALL(IF(FaturaAyrıntıları[Fatura No]=rngFatura,ROW(FaturaAyrıntıları[])-ROW(FaturaAyrıntıları[#Headers])), ROW(13:13)), MATCH($D$8, FaturaAyrıntıları[#Headers], 0)),\"\")","v":""},{"$f":"IFERROR(INDEX(FaturaAyrıntıları[],SMALL(IF(FaturaAyrıntıları[Fatura No]=rngFatura,ROW(FaturaAyrıntıları[])-ROW(FaturaAyrıntıları[#Headers])), ROW(13:13)), MATCH($E$8, FaturaAyrıntıları[#Headers], 0)),\"\")","v":""},{"$f":"IFERROR(INDEX(FaturaAyrıntıları[],SMALL(IF(FaturaAyrıntıları[Fatura No]=rngFatura,ROW(FaturaAyrıntıları[])-ROW(FaturaAyrıntıları[#Headers])), ROW(13:13)), MATCH($F$8, FaturaAyrıntıları[#Headers], 0)),\"\")","v":""},""]
[null,{"$f":"IFERROR(INDEX(FaturaAyrıntıları[],SMALL(IF(FaturaAyrıntıları[Fatura No]=rngFatura,ROW(FaturaAyrıntıları[])-ROW(FaturaAyrıntıları[#Headers])), ROW(14:14)), MATCH($B$8, FaturaAyrıntıları[#Headers], 0)),\"\")","v":""},{"$f":"IFERROR(INDEX(FaturaAyrıntıları[],SMALL(IF(FaturaAyrıntıları[Fatura No]=rngFatura,ROW(FaturaAyrıntıları[])-ROW(FaturaAyrıntıları[#Headers])), ROW(14:14)), MATCH($C$8, FaturaAyrıntıları[#Headers], 0)),\"\")","v":""},{"$f":"IFERROR(INDEX(FaturaAyrıntıları[],SMALL(IF(FaturaAyrıntıları[Fatura No]=rngFatura,ROW(FaturaAyrıntıları[])-ROW(FaturaAyrıntıları[#Headers])), ROW(14:14)), MATCH($D$8, FaturaAyrıntıları[#Headers], 0)),\"\")","v":""},{"$f":"IFERROR(INDEX(FaturaAyrıntıları[],SMALL(IF(FaturaAyrıntıları[Fatura No]=rngFatura,ROW(FaturaAyrıntıları[])-ROW(FaturaAyrıntıları[#Headers])), ROW(14:14)), MATCH($E$8, FaturaAyrıntıları[#Headers], 0)),\"\")","v":""},{"$f":"IFERROR(INDEX(FaturaAyrıntıları[],SMALL(IF(FaturaAyrıntıları[Fatura No]=rngFatura,ROW(FaturaAyrıntıları[])-ROW(FaturaAyrıntıları[#Headers])), ROW(14:14)), MATCH($F$8, FaturaAyrıntıları[#Headers], 0)),\"\")","v":""},""]
[null,{"$f":"IFERROR(INDEX(FaturaAyrıntıları[],SMALL(IF(FaturaAyrıntıları[Fatura No]=rngFatura,ROW(FaturaAyrıntıları[])-ROW(FaturaAyrıntıları[#Headers])), ROW(15:15)), MATCH($B$8, FaturaAyrıntıları[#Headers], 0)),\"\")","v":""},{"$f":"IFERROR(INDEX(FaturaAyrıntıları[],SMALL(IF(FaturaAyrıntıları[Fatura No]=rngFatura,ROW(FaturaAyrıntıları[])-ROW(FaturaAyrıntıları[#Headers])), ROW(15:15)), MATCH($C$8, FaturaAyrıntıları[#Headers], 0)),\"\")","v":""},{"$f":"IFERROR(INDEX(FaturaAyrıntıları[],SMALL(IF(FaturaAyrıntıları[Fatura No]=rngFatura,ROW(FaturaAyrıntıları[])-ROW(FaturaAyrıntıları[#Headers])), ROW(15:15)), MATCH($D$8, FaturaAyrıntıları[#Headers], 0)),\"\")","v":""},{"$f":"IFERROR(INDEX(FaturaAyrıntıları[],SMALL(IF(FaturaAyrıntıları[Fatura No]=rngFatura,ROW(FaturaAyrıntıları[])-ROW(FaturaAyrıntıları[#Headers])), ROW(15:15)), MATCH($E$8, FaturaAyrıntıları[#Headers], 0)),\"\")","v":""},{"$f":"IFERROR(INDEX(FaturaAyrıntıları[],SMALL(IF(FaturaAyrıntıları[Fatura No]=rngFatura,ROW(FaturaAyrıntıları[])-ROW(FaturaAyrıntıları[#Headers])), ROW(15:15)), MATCH($F$8, FaturaAyrıntıları[#Headers], 0)),\"\")","v":""},""]
[null,{"$f":"IFERROR(INDEX(FaturaAyrıntıları[],SMALL(IF(FaturaAyrıntıları[Fatura No]=rngFatura,ROW(FaturaAyrıntıları[])-ROW(FaturaAyrıntıları[#Headers])), ROW(16:16)), MATCH($B$8, FaturaAyrıntıları[#Headers], 0)),\"\")","v":""},{"$f":"IFERROR(INDEX(FaturaAyrıntıları[],SMALL(IF(FaturaAyrıntıları[Fatura No]=rngFatura,ROW(FaturaAyrıntıları[])-ROW(FaturaAyrıntıları[#Headers])), ROW(16:16)), MATCH($C$8, FaturaAyrıntıları[#Headers], 0)),\"\")","v":""},{"$f":"IFERROR(INDEX(FaturaAyrıntıları[],SMALL(IF(FaturaAyrıntıları[Fatura No]=rngFatura,ROW(FaturaAyrıntıları[])-ROW(FaturaAyrıntıları[#Headers])), ROW(16:16)), MATCH($D$8, FaturaAyrıntıları[#Headers], 0)),\"\")","v":""},{"$f":"IFERROR(INDEX(FaturaAyrıntıları[],SMALL(IF(FaturaAyrıntıları[Fatura No]=rngFatura,ROW(FaturaAyrıntıları[])-ROW(FaturaAyrıntıları[#Headers])), ROW(16:16)), MATCH($E$8, FaturaAyrıntıları[#Headers], 0)),\"\")","v":""},{"$f":"IFERROR(INDEX(FaturaAyrıntıları[],SMALL(IF(FaturaAyrıntıları[Fatura No]=rngFatura,ROW(FaturaAyrıntıları[])-ROW(FaturaAyrıntıları[#Headers])), ROW(16:16)), MATCH($F$8, FaturaAyrıntıları[#Headers], 0)),\"\")","v":""},""]
[null,{"$f":"IFERROR(INDEX(FaturaAyrıntıları[],SMALL(IF(FaturaAyrıntıları[Fatura No]=rngFatura,ROW(FaturaAyrıntıları[])-ROW(FaturaAyrıntıları[#Headers])), ROW(17:17)), MATCH($B$8, FaturaAyrıntıları[#Headers], 0)),\"\")","v":""},{"$f":"IFERROR(INDEX(FaturaAyrıntıları[],SMALL(IF(FaturaAyrıntıları[Fatura No]=rngFatura,ROW(FaturaAyrıntıları[])-ROW(FaturaAyrıntıları[#Headers])), ROW(17:17)), MATCH($C$8, FaturaAyrıntıları[#Headers], 0)),\"\")","v":""},{"$f":"IFERROR(INDEX(FaturaAyrıntıları[],SMALL(IF(FaturaAyrıntıları[Fatura No]=rngFatura,ROW(FaturaAyrıntıları[])-ROW(FaturaAyrıntıları[#Headers])), ROW(17:17)), MATCH($D$8, FaturaAyrıntıları[#Headers], 0)),\"\")","v":""},{"$f":"IFERROR(INDEX(FaturaAyrıntıları[],SMALL(IF(FaturaAyrıntıları[Fatura No]=rngFatura,ROW(FaturaAyrıntıları[])-ROW(FaturaAyrıntıları[#Headers])), ROW(17:17)), MATCH($E$8, FaturaAyrıntıları[#Headers], 0)),\"\")","v":""},{"$f":"IFERROR(INDEX(FaturaAyrıntıları[],SMALL(IF(FaturaAyrıntıları[Fatura No]=rngFatura,ROW(FaturaAyrıntıları[])-ROW(FaturaAyrıntıları[#Headers])), ROW(17:17)), MATCH($F$8, FaturaAyrıntıları[#Headers], 0)),\"\")","v":""},""]
[null,{"$f":"IFERROR(INDEX(FaturaAyrıntıları[],SMALL(IF(FaturaAyrıntıları[Fatura No]=rngFatura,ROW(FaturaAyrıntıları[])-ROW(FaturaAyrıntıları[#Headers])), ROW(18:18)), MATCH($B$8, FaturaAyrıntıları[#Headers], 0)),\"\")","v":""},{"$f":"IFERROR(INDEX(FaturaAyrıntıları[],SMALL(IF(FaturaAyrıntıları[Fatura No]=rngFatura,ROW(FaturaAyrıntıları[])-ROW(FaturaAyrıntıları[#Headers])), ROW(18:18)), MATCH($C$8, FaturaAyrıntıları[#Headers], 0)),\"\")","v":""},{"$f":"IFERROR(INDEX(FaturaAyrıntıları[],SMALL(IF(FaturaAyrıntıları[Fatura No]=rngFatura,ROW(FaturaAyrıntıları[])-ROW(FaturaAyrıntıları[#Headers])), ROW(18:18)), MATCH($D$8, FaturaAyrıntıları[#Headers], 0)),\"\")","v":""},{"$f":"IFERROR(INDEX(FaturaAyrıntıları[],SMALL(IF(FaturaAyrıntıları[Fatura No]=rngFatura,ROW(FaturaAyrıntıları[])-ROW(FaturaAyrıntıları[#Headers])), ROW(18:18)), MATCH($E$8, FaturaAyrıntıları[#Headers], 0)),\"\")","v":""},{"$f":"IFERROR(INDEX(FaturaAyrıntıları[],SMALL(IF(FaturaAyrıntıları[Fatura No]=rngFatura,ROW(FaturaAyrıntıları[])-ROW(FaturaAyrıntıları[#Headers])), ROW(18:18)), MATCH($F$8, FaturaAyrıntıları[#Headers], 0)),\"\")","v":""},""]
[null,{"$f":"IFERROR(INDEX(FaturaAyrıntıları[],SMALL(IF(FaturaAyrıntıları[Fatura No]=rngFatura,ROW(FaturaAyrıntıları[])-ROW(FaturaAyrıntıları[#Headers])), ROW(19:19)), MATCH($B$8, FaturaAyrıntıları[#Headers], 0)),\"\")","v":""},{"$f":"IFERROR(INDEX(FaturaAyrıntıları[],SMALL(IF(FaturaAyrıntıları[Fatura No]=rngFatura,ROW(FaturaAyrıntıları[])-ROW(FaturaAyrıntıları[#Headers])), ROW(19:19)), MATCH($C$8, FaturaAyrıntıları[#Headers], 0)),\"\")","v":""},{"$f":"IFERROR(INDEX(FaturaAyrıntıları[],SMALL(IF(FaturaAyrıntıları[Fatura No]=rngFatura,ROW(FaturaAyrıntıları[])-ROW(FaturaAyrıntıları[#Headers])), ROW(19:19)), MATCH($D$8, FaturaAyrıntıları[#Headers], 0)),\"\")","v":""},{"$f":"IFERROR(INDEX(FaturaAyrıntıları[],SMALL(IF(FaturaAyrıntıları[Fatura No]=rngFatura,ROW(FaturaAyrıntıları[])-ROW(FaturaAyrıntıları[#Headers])), ROW(19:19)), MATCH($E$8, FaturaAyrıntıları[#Headers], 0)),\"\")","v":""},{"$f":"IFERROR(INDEX(FaturaAyrıntıları[],SMALL(IF(FaturaAyrıntıları[Fatura No]=rngFatura,ROW(FaturaAyrıntıları[])-ROW(FaturaAyrıntıları[#Headers])), ROW(19:19)), MATCH($F$8, FaturaAyrıntıları[#Headers], 0)),\"\")","v":""},""]
[null,{"$f":"IFERROR(INDEX(FaturaAyrıntıları[],SMALL(IF(FaturaAyrıntıları[Fatura No]=rngFatura,ROW(FaturaAyrıntıları[])-ROW(FaturaAyrıntıları[#Headers])), ROW(20:20)), MATCH($B$8, FaturaAyrıntıları[#Headers], 0)),\"\")","v":""},{"$f":"IFERROR(INDEX(FaturaAyrıntıları[],SMALL(IF(FaturaAyrıntıları[Fatura No]=rngFatura,ROW(FaturaAyrıntıları[])-ROW(FaturaAyrıntıları[#Headers])), ROW(20:20)), MATCH($C$8, FaturaAyrıntıları[#Headers], 0)),\"\")","v":""},{"$f":"IFERROR(INDEX(FaturaAyrıntıları[],SMALL(IF(FaturaAyrıntıları[Fatura No]=rngFatura,ROW(FaturaAyrıntıları[])-ROW(FaturaAyrıntıları[#Headers])), ROW(20:20)), MATCH($D$8, FaturaAyrıntıları[#Headers], 0)),\"\")","v":""},{"$f":"IFERROR(INDEX(FaturaAyrıntıları[],SMALL(IF(FaturaAyrıntıları[Fatura No]=rngFatura,ROW(FaturaAyrıntıları[])-ROW(FaturaAyrıntıları[#Headers])), ROW(20:20)), MATCH($E$8, FaturaAyrıntıları[#Headers], 0)),\"\")","v":""},{"$f":"IFERROR(INDEX(FaturaAyrıntıları[],SMALL(IF(FaturaAyrıntıları[Fatura No]=rngFatura,ROW(FaturaAyrıntıları[])-ROW(FaturaAyrıntıları[#Headers])), ROW(20:20)), MATCH($F$8, FaturaAyrıntıları[#Headers], 0)),\"\")","v":""},""]
[null,{"$f":"IFERROR(INDEX(FaturaAyrıntıları[],SMALL(IF(FaturaAyrıntıları[Fatura No]=rngFatura,ROW(FaturaAyrıntıları[])-ROW(FaturaAyrıntıları[#Headers])), ROW(21:21)), MATCH($B$8, FaturaAyrıntıları[#Headers], 0)),\"\")","v":""},{"$f":"IFERROR(INDEX(FaturaAyrıntıları[],SMALL(IF(FaturaAyrıntıları[Fatura No]=rngFatura,ROW(FaturaAyrıntıları[])-ROW(FaturaAyrıntıları[#Headers])), ROW(21:21)), MATCH($C$8, FaturaAyrıntıları[#Headers], 0)),\"\")","v":""},{"$f":"IFERROR(INDEX(FaturaAyrıntıları[],SMALL(IF(FaturaAyrıntıları[Fatura No]=rngFatura,ROW(FaturaAyrıntıları[])-ROW(FaturaAyrıntıları[#Headers])), ROW(21:21)), MATCH($D$8, FaturaAyrıntıları[#Headers], 0)),\"\")","v":""},{"$f":"IFERROR(INDEX(FaturaAyrıntıları[],SMALL(IF(FaturaAyrıntıları[Fatura No]=rngFatura,ROW(FaturaAyrıntıları[])-ROW(FaturaAyrıntıları[#Headers])), ROW(21:21)), MATCH($E$8, FaturaAyrıntıları[#Headers], 0)),\"\")","v":""},{"$f":"IFERROR(INDEX(FaturaAyrıntıları[],SMALL(IF(FaturaAyrıntıları[Fatura No]=rngFatura,ROW(FaturaAyrıntıları[])-ROW(FaturaAyrıntıları[#Headers])), ROW(21:21)), MATCH($F$8, FaturaAyrıntıları[#Headers], 0)),\"\")","v":""},""]
[null,{"$f":"IFERROR(INDEX(FaturaAyrıntıları[],SMALL(IF(FaturaAyrıntıları[Fatura No]=rngFatura,ROW(FaturaAyrıntıları[])-ROW(FaturaAyrıntıları[#Headers])), ROW(22:22)), MATCH($B$8, FaturaAyrıntıları[#Headers], 0)),\"\")","v":""},{"$f":"IFERROR(INDEX(FaturaAyrıntıları[],SMALL(IF(FaturaAyrıntıları[Fatura No]=rngFatura,ROW(FaturaAyrıntıları[])-ROW(FaturaAyrıntıları[#Headers])), ROW(22:22)), MATCH($C$8, FaturaAyrıntıları[#Headers], 0)),\"\")","v":""},{"$f":"IFERROR(INDEX(FaturaAyrıntıları[],SMALL(IF(FaturaAyrıntıları[Fatura No]=rngFatura,ROW(FaturaAyrıntıları[])-ROW(FaturaAyrıntıları[#Headers])), ROW(22:22)), MATCH($D$8, FaturaAyrıntıları[#Headers], 0)),\"\")","v":""},{"$f":"IFERROR(INDEX(FaturaAyrıntıları[],SMALL(IF(FaturaAyrıntıları[Fatura No]=rngFatura,ROW(FaturaAyrıntıları[])-ROW(FaturaAyrıntıları[#Headers])), ROW(22:22)), MATCH($E$8, FaturaAyrıntıları[#Headers], 0)),\"\")","v":""},{"$f":"IFERROR(INDEX(FaturaAyrıntıları[],SMALL(IF(FaturaAyrıntıları[Fatura No]=rngFatura,ROW(FaturaAyrıntıları[])-ROW(FaturaAyrıntıları[#Headers])), ROW(22:22)), MATCH($F$8, FaturaAyrıntıları[#Headers], 0)),\"\")","v":""},""]
[null,{"$f":"IFERROR(INDEX(FaturaAyrıntıları[],SMALL(IF(FaturaAyrıntıları[Fatura No]=rngFatura,ROW(FaturaAyrıntıları[])-ROW(FaturaAyrıntıları[#Headers])), ROW(23:23)), MATCH($B$8, FaturaAyrıntıları[#Headers], 0)),\"\")","v":""},{"$f":"IFERROR(INDEX(FaturaAyrıntıları[],SMALL(IF(FaturaAyrıntıları[Fatura No]=rngFatura,ROW(FaturaAyrıntıları[])-ROW(FaturaAyrıntıları[#Headers])), ROW(23:23)), MATCH($C$8, FaturaAyrıntıları[#Headers], 0)),\"\")","v":""},{"$f":"IFERROR(INDEX(FaturaAyrıntıları[],SMALL(IF(FaturaAyrıntıları[Fatura No]=rngFatura,ROW(FaturaAyrıntıları[])-ROW(FaturaAyrıntıları[#Headers])), ROW(23:23)), MATCH($D$8, FaturaAyrıntıları[#Headers], 0)),\"\")","v":""},{"$f":"IFERROR(INDEX(FaturaAyrıntıları[],SMALL(IF(FaturaAyrıntıları[Fatura No]=rngFatura,ROW(FaturaAyrıntıları[])-ROW(FaturaAyrıntıları[#Headers])), ROW(23:23)), MATCH($E$8, FaturaAyrıntıları[#Headers], 0)),\"\")","v":""},{"$f":"IFERROR(INDEX(FaturaAyrıntıları[],SMALL(IF(FaturaAyrıntıları[Fatura No]=rngFatura,ROW(FaturaAyrıntıları[])-ROW(FaturaAyrıntıları[#Headers])), ROW(23:23)), MATCH($F$8, FaturaAyrıntıları[#Headers], 0)),\"\")","v":""},""]
[null,{"$f":"IFERROR(INDEX(FaturaAyrıntıları[],SMALL(IF(FaturaAyrıntıları[Fatura No]=rngFatura,ROW(FaturaAyrıntıları[])-ROW(FaturaAyrıntıları[#Headers])), ROW(24:24)), MATCH($B$8, FaturaAyrıntıları[#Headers], 0)),\"\")","v":""},{"$f":"IFERROR(INDEX(FaturaAyrıntıları[],SMALL(IF(FaturaAyrıntıları[Fatura No]=rngFatura,ROW(FaturaAyrıntıları[])-ROW(FaturaAyrıntıları[#Headers])), ROW(24:24)), MATCH($C$8, FaturaAyrıntıları[#Headers], 0)),\"\")","v":""},{"$f":"IFERROR(INDEX(FaturaAyrıntıları[],SMALL(IF(FaturaAyrıntıları[Fatura No]=rngFatura,ROW(FaturaAyrıntıları[])-ROW(FaturaAyrıntıları[#Headers])), ROW(24:24)), MATCH($D$8, FaturaAyrıntıları[#Headers], 0)),\"\")","v":""},{"$f":"IFERROR(INDEX(FaturaAyrıntıları[],SMALL(IF(FaturaAyrıntıları[Fatura No]=rngFatura,ROW(FaturaAyrıntıları[])-ROW(FaturaAyrıntıları[#Headers])), ROW(24:24)), MATCH($E$8, FaturaAyrıntıları[#Headers], 0)),\"\")","v":""},{"$f":"IFERROR(INDEX(FaturaAyrıntıları[],SMALL(IF(FaturaAyrıntıları[Fatura No]=rngFatura,ROW(FaturaAyrıntıları[])-ROW(FaturaAyrıntıları[#Headers])), ROW(24:24)), MATCH($F$8, FaturaAyrıntıları[#Headers], 0)),\"\")","v":""},""]
[null,{"$f":"IFERROR(INDEX(FaturaAyrıntıları[],SMALL(IF(FaturaAyrıntıları[Fatura No]=rngFatura,ROW(FaturaAyrıntıları[])-ROW(FaturaAyrıntıları[#Headers])), ROW(25:25)), MATCH($B$8, FaturaAyrıntıları[#Headers], 0)),\"\")","v":""},{"$f":"IFERROR(INDEX(FaturaAyrıntıları[],SMALL(IF(FaturaAyrıntıları[Fatura No]=rngFatura,ROW(FaturaAyrıntıları[])-ROW(FaturaAyrıntıları[#Headers])), ROW(25:25)), MATCH($C$8, FaturaAyrıntıları[#Headers], 0)),\"\")","v":""},{"$f":"IFERROR(INDEX(FaturaAyrıntıları[],SMALL(IF(FaturaAyrıntıları[Fatura No]=rngFatura,ROW(FaturaAyrıntıları[])-ROW(FaturaAyrıntıları[#Headers])), ROW(25:25)), MATCH($D$8, FaturaAyrıntıları[#Headers], 0)),\"\")","v":""},{"$f":"IFERROR(INDEX(FaturaAyrıntıları[],SMALL(IF(FaturaAyrıntıları[Fatura No]=rngFatura,ROW(FaturaAyrıntıları[])-ROW(FaturaAyrıntıları[#Headers])), ROW(25:25)), MATCH($E$8, FaturaAyrıntıları[#Headers], 0)),\"\")","v":""},{"$f":"IFERROR(INDEX(FaturaAyrıntıları[],SMALL(IF(FaturaAyrıntıları[Fatura No]=rngFatura,ROW(FaturaAyrıntıları[])-ROW(FaturaAyrıntıları[#Headers])), ROW(25:25)), MATCH($F$8, FaturaAyrıntıları[#Headers], 0)),\"\")","v":""},""]
[{"$nulls":5},"Fatura Ara Toplamı",{"$f":"SUM(ProjeFaturası[Fiyat])","v":{"v":2014,"d":"2,014.00 ₺"}}]
[{"$nulls":5},"Vergi Oranı",{"$f":"VLOOKUP(rngFatura,FaturalarAna[],5)","v":{"v":0.0875,"d":"8.75%"}}]
[{"$nulls":5},"Satış Vergisi",{"$f":"G34*G35","v":{"v":176.225,"d":"176.23 ₺"}}]
[{"$nulls":5},"Diğer",{"$f":"VLOOKUP(rngFatura,FaturalarAna[],6)","v":0}]
[null,{"$f":"\"Tüm çekleri şu ada yazın \"&ŞirketAdı&\".\"","v":"Tüm çekleri şu ada yazın Şirket Adı."},{"$nulls":3},"Ödenen Tutar",{"$f":"VLOOKUP(rngFatura,FaturalarAna[],7)","v":0}]
[null,"<#> gün içinde tamamı ödenecek. Geciken hesaplara aylık %<#> hizmet ücreti uygulanır.",{"$nulls":3},"TOPLAM",{"$f":"(G34+G36+G37)-G38","v":{"v":2190.225,"d":"2,190.23 ₺"}}]

{"sheet":"Müşteriler","index":1,"n_rows":6,"n_cols":12,"rows_kept":6}
[null," "]
[null,null,"Müşteriler"]
[null,"Arama","Şirket No","Şirket Adı","Kişi Adı","Adres","Şehir","Eyalet","Posta Kodu","Telefon","E-posta","Faks"]
[null,{"$f":"C4& \" - \"&D4","v":"1 - Tailspin Toys "},1,"Tailspin Toys ","Recep Tekin","345 Cherry Street","Albany","SD","123456","432-555-0178","birisi@example.com","432-555-0187"]
[null,"2 - Contoso, Ltd",2,"Contoso, Ltd","Sanjay Patel","567 Walnut Lane","Moline","MO","098765","432-555-0189","birisi@example.com","432-555-0123"]
[null,"Toplamlar",{"$f":"\"Toplam Müşteri: \"&SUBTOTAL(103,MüşteriListesi[Şirket No])","v":"Toplam Müşteri: 2"}]

{"sheet":"Faturalar - Ana","index":2,"n_rows":6,"n_cols":11,"rows_kept":6}
[]
[null,"Faturalar"]
[null,"Fatura No","Şirket","Fatura Tarihi","Proje Açıklaması","Vergi Oranı","Diğer","Yatırılan","Ayrıntı Toplamı","Fatura Toplamı","Notlar"]
[null,"3-456-1","1 - Tailspin Toys ",{"$f":"TODAY()","v":"2019-07-29"},"Proje 1",{"v":0.0875,"d":"8.75%"},{"v":100,"d":"100.00 ₺"},{"v":100,"d":"100.00 ₺"},{"$f":"SUMIF(FaturaAyrıntıları[Fatura No],\"=\"&FaturalarAna[[#This Row],[Fatura No]],FaturaAyrıntıları[Toplam])","v":{"v":5200,"d":"5,200.00 ₺"}},{"$f":"(FaturalarAna[[#This Row],[Ayrıntı Toplamı]]*(1+FaturalarAna[[#This Row],[Vergi Oranı]]))+FaturalarAna[[#This Row],[Diğer]]-FaturalarAna[[#This Row],[Yatırılan]]","v":{"v":5654.999999999999,"d":"5,655.00 ₺"}}]
[null,"3-456-2","2 - Contoso, Ltd",{"$f":"TODAY()+10","v":"2019-08-08"},"Proje 2",{"v":0.0875,"d":"8.75%"},null,null,{"$f":"SUMIF(FaturaAyrıntıları[Fatura No],\"=\"&FaturalarAna[[#This Row],[Fatura No]],FaturaAyrıntıları[Toplam])","v":{"v":2014,"d":"2,014.00 ₺"}},{"$f":"(FaturalarAna[[#This Row],[Ayrıntı Toplamı]]*(1+FaturalarAna[[#This Row],[Vergi Oranı]]))+FaturalarAna[[#This Row],[Diğer]]-FaturalarAna[[#This Row],[Yatırılan]]","v":{"v":2190.225,"d":"2,190.23 ₺"}}]
[null,"Toplamlar",{"$f":"\"Toplam Fatura: \"&SUBTOTAL(103,FaturalarAna[Fatura No])","v":"Toplam Fatura: 2"},{"$nulls":3},{"$f":"SUBTOTAL(109,FaturalarAna[Diğer])","v":{"v":100,"d":"100.00 ₺"}},{"$f":"SUBTOTAL(109,FaturalarAna[Yatırılan])","v":{"v":100,"d":"100.00 ₺"}},{"$f":"SUBTOTAL(109,FaturalarAna[Ayrıntı Toplamı])","v":{"v":7214,"d":"7,214.00 ₺"}},{"$f":"SUBTOTAL(109,FaturalarAna[Fatura Toplamı])","v":{"v":7845.2249999999985,"d":"7,845.23 ₺"}}]

{"sheet":"Fatura Ayrıntıları","index":3,"n_rows":40,"n_cols":8,"rows_kept":40}
[]
[null,"Fatura Ayrıntıları"]
[null,"Açıklama","Fatura No","Öğe No","Mkt","Birim Fiyatı","İndirim","Toplam"]
[null,"Fatura 3-456-1 Veri 1","3-456-1",1,1,{"v":1,"d":"1.00 ₺"},{"v":1,"d":"1.00 ₺"},{"$f":"(FaturaAyrıntıları[[#This Row],[Mkt]]*FaturaAyrıntıları[[#This Row],[Birim Fiyatı]])-FaturaAyrıntıları[[#This Row],[İndirim]]","v":{"v":0,"d":"0.00 ₺"}}]
[null,"Fatura 3-456-1 Veri 2","3-456-1",2,2,{"v":2,"d":"2.00 ₺"},{"v":2,"d":"2.00 ₺"},{"$f":"(FaturaAyrıntıları[[#This Row],[Mkt]]*FaturaAyrıntıları[[#This Row],[Birim Fiyatı]])-FaturaAyrıntıları[[#This Row],[İndirim]]","v":{"v":2,"d":"2.00 ₺"}}]
[null,"Fatura 3-456-1 Veri 3","3-456-1",3,3,{"v":3,"d":"3.00 ₺"},{"v":3,"d":"3.00 ₺"},{"$f":"(FaturaAyrıntıları[[#This Row],[Mkt]]*FaturaAyrıntıları[[#This Row],[Birim Fiyatı]])-FaturaAyrıntıları[[#This Row],[İndirim]]","v":{"v":6,"d":"6.00 ₺"}}]
[null,"Fatura 3-456-1 Veri 4","3-456-1",4,4,{"v":4,"d":"4.00 ₺"},{"v":4,"d":"4.00 ₺"},{"$f":"(FaturaAyrıntıları[[#This Row],[Mkt]]*FaturaAyrıntıları[[#This Row],[Birim Fiyatı]])-FaturaAyrıntıları[[#This Row],[İndirim]]","v":{"v":12,"d":"12.00 ₺"}}]
[null,"Fatura 3-456-1 Veri 5","3-456-1",5,5,{"v":5,"d":"5.00 ₺"},{"v":5,"d":"5.00 ₺"},{"$f":"(FaturaAyrıntıları[[#This Row],[Mkt]]*FaturaAyrıntıları[[#This Row],[Birim Fiyatı]])-FaturaAyrıntıları[[#This Row],[İndirim]]","v":{"v":20,"d":"20.00 ₺"}}]
[null,"Fatura 3-456-1 Veri 6","3-456-1",6,6,{"v":6,"d":"6.00 ₺"},{"v":6,"d":"6.00 ₺"},{"$f":"(FaturaAyrıntıları[[#This Row],[Mkt]]*FaturaAyrıntıları[[#This Row],[Birim Fiyatı]])-FaturaAyrıntıları[[#This Row],[İndirim]]","v":{"v":30,"d":"30.00 ₺"}}]
[null,"Fatura 3-456-1 Veri 7","3-456-1",7,7,{"v":7,"d":"7.00 ₺"},{"v":7,"d":"7.00 ₺"},{"$f":"(FaturaAyrıntıları[[#This Row],[Mkt]]*FaturaAyrıntıları[[#This Row],[Birim Fiyatı]])-FaturaAyrıntıları[[#This Row],[İndirim]]","v":{"v":42,"d":"42.00 ₺"}}]
[null,"Fatura 3-456-1 Veri 8","3-456-1",8,8,{"v":8,"d":"8.00 ₺"},{"v":8,"d":"8.00 ₺"},{"$f":"(FaturaAyrıntıları[[#This Row],[Mkt]]*FaturaAyrıntıları[[#This Row],[Birim Fiyatı]])-FaturaAyrıntıları[[#This Row],[İndirim]]","v":{"v":56,"d":"56.00 ₺"}}]
[null,"Fatura 3-456-1 Veri 9","3-456-1",9,9,{"v":9,"d":"9.00 ₺"},{"v":9,"d":"9.00 ₺"},{"$f":"(FaturaAyrıntıları[[#This Row],[Mkt]]*FaturaAyrıntıları[[#This Row],[Birim Fiyatı]])-FaturaAyrıntıları[[#This Row],[İndirim]]","v":{"v":72,"d":"72.00 ₺"}}]
[null,"Fatura 3-456-1 Veri 10","3-456-1",10,10,{"v":10,"d":"10.00 ₺"},{"v":10,"d":"10.00 ₺"},{"$f":"(FaturaAyrıntıları[[#This Row],[Mkt]]*FaturaAyrıntıları[[#This Row],[Birim Fiyatı]])-FaturaAyrıntıları[[#This Row],[İndirim]]","v":{"v":90,"d":"90.00 ₺"}}]
[null,"Fatura 3-456-1 Veri 11","3-456-1",11,11,{"v":11,"d":"11.00 ₺"},{"v":11,"d":"11.00 ₺"},{"$f":"(FaturaAyrıntıları[[#This Row],[Mkt]]*FaturaAyrıntıları[[#This Row],[Birim Fiyatı]])-FaturaAyrıntıları[[#This Row],[İndirim]]","v":{"v":110,"d":"110.00 ₺"}}]
[null,"Fatura 3-456-1 Veri 12","3-456-1",12,12,{"v":12,"d":"12.00 ₺"},{"v":12,"d":"12.00 ₺"},{"$f":"(FaturaAyrıntıları[[#This Row],[Mkt]]*FaturaAyrıntıları[[#This Row],[Birim Fiyatı]])-FaturaAyrıntıları[[#This Row],[İndirim]]","v":{"v":132,"d":"132.00 ₺"}}]
[null,"Fatura 3-456-1 Veri 13","3-456-1",13,13,{"v":13,"d":"13.00 ₺"},{"v":13,"d":"13.00 ₺"},{"$f":"(FaturaAyrıntıları[[#This Row],[Mkt]]*FaturaAyrıntıları[[#This Row],[Birim Fiyatı]])-FaturaAyrıntıları[[#This Row],[İndirim]]","v":{"v":156,"d":"156.00 ₺"}}]
[null,"Fatura 3-456-1 Veri 14","3-456-1",14,14,{"v":14,"d":"14.00 ₺"},{"v":14,"d":"14.00 ₺"},{"$f":"(FaturaAyrıntıları[[#This Row],[Mkt]]*FaturaAyrıntıları[[#This Row],[Birim Fiyatı]])-FaturaAyrıntıları[[#This Row],[İndirim]]","v":{"v":182,"d":"182.00 ₺"}}]
[null,"Fatura 3-456-1 Veri 15","3-456-1",15,15,{"v":15,"d":"15.00 ₺"},{"v":15,"d":"15.00 ₺"},{"$f":"(FaturaAyrıntıları[[#This Row],[Mkt]]*FaturaAyrıntıları[[#This Row],[Birim Fiyatı]])-FaturaAyrıntıları[[#This Row],[İndirim]]","v":{"v":210,"d":"210.00 ₺"}}]
[null,"Fatura 3-456-1 Veri 16","3-456-1",16,16,{"v":16,"d":"16.00 ₺"},{"v":16,"d":"16.00 ₺"},{"$f":"(FaturaAyrıntıları[[#This Row],[Mkt]]*FaturaAyrıntıları[[#This Row],[Birim Fiyatı]])-FaturaAyrıntıları[[#This Row],[İndirim]]","v":{"v":240,"d":"240.00 ₺"}}]
[null,"Fatura 3-456-1 Veri 17","3-456-1",17,17,{"v":17,"d":"17.00 ₺"},{"v":17,"d":"17.00 ₺"},{"$f":"(FaturaAyrıntıları[[#This Row],[Mkt]]*FaturaAyrıntıları[[#This Row],[Birim Fiyatı]])-FaturaAyrıntıları[[#This Row],[İndirim]]","v":{"v":272,"d":"272.00 ₺"}}]
[null,"Fatura 3-456-1 Veri 18","3-456-1",18,18,{"v":18,"d":"18.00 ₺"},{"v":18,"d":"18.00 ₺"},{"$f":"(FaturaAyrıntıları[[#This Row],[Mkt]]*FaturaAyrıntıları[[#This Row],[Birim Fiyatı]])-FaturaAyrıntıları[[#This Row],[İndirim]]","v":{"v":306,"d":"306.00 ₺"}}]
[null,"Fatura 3-456-1 Veri 19","3-456-1",19,19,{"v":19,"d":"19.00 ₺"},{"v":19,"d":"19.00 ₺"},{"$f":"(FaturaAyrıntıları[[#This Row],[Mkt]]*FaturaAyrıntıları[[#This Row],[Birim Fiyatı]])-FaturaAyrıntıları[[#This Row],[İndirim]]","v":{"v":342,"d":"342.00 ₺"}}]
[null,"Fatura 3-456-1 Veri 20","3-456-1",20,20,{"v":20,"d":"20.00 ₺"},{"v":20,"d":"20.00 ₺"},{"$f":"(FaturaAyrıntıları[[#This Row],[Mkt]]*FaturaAyrıntıları[[#This Row],[Birim Fiyatı]])-FaturaAyrıntıları[[#This Row],[İndirim]]","v":{"v":380,"d":"380.00 ₺"}}]
[null,"Fatura 3-456-1 Veri 21","3-456-1",21,21,{"v":21,"d":"21.00 ₺"},{"v":21,"d":"21.00 ₺"},{"$f":"(FaturaAyrıntıları[[#This Row],[Mkt]]*FaturaAyrıntıları[[#This Row],[Birim Fiyatı]])-FaturaAyrıntıları[[#This Row],[İndirim]]","v":{"v":420,"d":"420.00 ₺"}}]
[null,"Fatura 3-456-1 Veri 22","3-456-1",22,22,{"v":22,"d":"22.00 ₺"},{"v":22,"d":"22.00 ₺"},{"$f":"(FaturaAyrıntıları[[#This Row],[Mkt]]*FaturaAyrıntıları[[#This Row],[Birim Fiyatı]])-FaturaAyrıntıları[[#This Row],[İndirim]]","v":{"v":462,"d":"462.00 ₺"}}]
[null,"Fatura 3-456-1 Veri 23","3-456-1",23,23,{"v":23,"d":"23.00 ₺"},{"v":23,"d":"23.00 ₺"},{"$f":"(FaturaAyrıntıları[[#This Row],[Mkt]]*FaturaAyrıntıları[[#This Row],[Birim Fiyatı]])-FaturaAyrıntıları[[#This Row],[İndirim]]","v":{"v":506,"d":"506.00 ₺"}}]
[null,"Fatura 3-456-1 Veri 24","3-456-1",24,24,{"v":24,"d":"24.00 ₺"},{"v":24,"d":"24.00 ₺"},{"$f":"(FaturaAyrıntıları[[#This Row],[Mkt]]*FaturaAyrıntıları[[#This Row],[Birim Fiyatı]])-FaturaAyrıntıları[[#This Row],[İndirim]]","v":{"v":552,"d":"552.00 ₺"}}]
[null,"Fatura 3-456-1 Veri 25","3-456-1",25,25,{"v":25,"d":"25.00 ₺"},{"v":25,"d":"25.00 ₺"},{"$f":"(FaturaAyrıntıları[[#This Row],[Mkt]]*FaturaAyrıntıları[[#This Row],[Birim Fiyatı]])-FaturaAyrıntıları[[#This Row],[İndirim]]","v":{"v":600,"d":"600.00 ₺"}}]
[null,"Fatura 3-456-2 Veri 1","3-456-2","Z4567",39,{"v":5,"d":"5.00 ₺"},null,{"$f":"(FaturaAyrıntıları[[#This Row],[Mkt]]*FaturaAyrıntıları[[#This Row],[Birim Fiyatı]])-FaturaAyrıntıları[[#This Row],[İndirim]]","v":{"v":195,"d":"195.00 ₺"}}]
[null,"Fatura 3-456-2 Veri 2","3-456-2","Z4568",40,{"v":4,"d":"4.00 ₺"},{"v":5,"d":"5.00 ₺"},{"$f":"(FaturaAyrıntıları[[#This Row],[Mkt]]*FaturaAyrıntıları[[#This Row],[Birim Fiyatı]])-FaturaAyrıntıları[[#This Row],[İndirim]]","v":{"v":155,"d":"155.00 ₺"}}]
[null,"Fatura 3-456-2 Veri 3","3-456-2","Z4569",30,{"v":6,"d":"6.00 ₺"},{"v":7,"d":"7.00 ₺"},{"$f":"(FaturaAyrıntıları[[#This Row],[Mkt]]*FaturaAyrıntıları[[#This Row],[Birim Fiyatı]])-FaturaAyrıntıları[[#This Row],[İndirim]]","v":{"v":173,"d":"173.00 ₺"}}]
[null,"Fatura 3-456-2 Veri 4","3-456-2","Z4570",40,{"v":7,"d":"7.00 ₺"},null,{"$f":"(FaturaAyrıntıları[[#This Row],[Mkt]]*FaturaAyrıntıları[[#This Row],[Birim Fiyatı]])-FaturaAyrıntıları[[#This Row],[İndirim]]","v":{"v":280,"d":"280.00 ₺"}}]
[null,"Fatura 3-456-2 Veri 5","3-456-2","Z4571",10,{"v":4,"d":"4.00 ₺"},null,{"$f":"(FaturaAyrıntıları[[#This Row],[Mkt]]*FaturaAyrıntıları[[#This Row],[Birim Fiyatı]])-FaturaAyrıntıları[[#This Row],[İndirim]]","v":{"v":40,"d":"40.00 ₺"}}]
[null,"Fatura 3-456-2 Veri 6","3-456-2","Z4572",5,{"v":8,"d":"8.00 ₺"},null,{"$f":"(FaturaAyrıntıları[[#This Row],[Mkt]]*FaturaAyrıntıları[[#This Row],[Birim Fiyatı]])-FaturaAyrıntıları[[#This Row],[İndirim]]","v":{"v":40,"d":"40.00 ₺"}}]
[null,"Fatura 3-456-2 Veri 7","3-456-2","Z4573",70,{"v":6,"d":"6.00 ₺"},null,{"$f":"(FaturaAyrıntıları[[#This Row],[Mkt]]*FaturaAyrıntıları[[#This Row],[Birim Fiyatı]])-FaturaAyrıntıları[[#This Row],[İndirim]]","v":{"v":420,"d":"420.00 ₺"}}]
[null,"Fatura 3-456-2 Veri 8","3-456-2","Z4574",25,{"v":4,"d":"4.00 ₺"},null,{"$f":"(FaturaAyrıntıları[[#This Row],[Mkt]]*FaturaAyrıntıları[[#This Row],[Birim Fiyatı]])-FaturaAyrıntıları[[#This Row],[İndirim]]","v":{"v":100,"d":"100.00 ₺"}}]
[null,"Fatura 3-456-2 Veri 9","3-456-2","Z4575",5,{"v":7,"d":"7.00 ₺"},{"v":3,"d":"3.00 ₺"},{"$f":"(FaturaAyrıntıları[[#This Row],[Mkt]]*FaturaAyrıntıları[[#This Row],[Birim Fiyatı]])-FaturaAyrıntıları[[#This Row],[İndirim]]","v":{"v":32,"d":"32.00 ₺"}}]
[null,"Fatura 3-456-2 Veri 10","3-456-2","Z4576",80,{"v":1,"d":"1.00 ₺"},null,{"$f":"(FaturaAyrıntıları[[#This Row],[Mkt]]*FaturaAyrıntıları[[#This Row],[Birim Fiyatı]])-FaturaAyrıntıları[[#This Row],[İndirim]]","v":{"v":80,"d":"80.00 ₺"}}]
[null,"Fatura 3-456-2 Veri 11","3-456-2","Z4577",65,{"v":7,"d":"7.00 ₺"},null,{"$f":"(FaturaAyrıntıları[[#This Row],[Mkt]]*FaturaAyrıntıları[[#This Row],[Birim Fiyatı]])-FaturaAyrıntıları[[#This Row],[İndirim]]","v":{"v":455,"d":"455.00 ₺"}}]
[null,"Fatura 3-456-2 Veri 12","3-456-2","Z4578",44,{"v":1,"d":"1.00 ₺"},null,{"$f":"(FaturaAyrıntıları[[#This Row],[Mkt]]*FaturaAyrıntıları[[#This Row],[Birim Fiyatı]])-FaturaAyrıntıları[[#This Row],[İndirim]]","v":{"v":44,"d":"44.00 ₺"}}]

{"sheet":"Bu Fatura İzleyicisi Hakkında","index":4,"n_rows":40,"n_cols":3,"rows_kept":40,"merged":[[3,1,3,7],[4,1,4,7],[5,1,5,7],[6,1,6,7],[7,2,7,7],[8,2,8,7],[9,2,9,7],[10,2,10,7],[11,2,11,7],[12,1,12,7],[13,2,13,3],[14,2,14,7],[15,1,15,7],[16,2,16,7],[17,2,17,7],[18,2,18,7],[19,2,19,7],[20,2,20,7],[21,2,21,7],[22,1,22,7],[23,1,23,7],[24,2,24,7],[25,2,25,7],[26,2,26,7],[27,2,27,7],[28,1,28,7],[29,1,29,7],[30,2,30,7],[31,2,31,7],[32,2,32,7],[33,2,33,7],[34,2,34,7],[36,2,36,7],[37,2,37,7],[38,2,38,7],[39,2,39,7]]}
[null,"Bu Fatura İzleyicisi Hakkında"]
[]
[]
[null,"Fatura İzleyicisi müşterilerin, faturaların ve fatura ayrıntılarının geçmişini tutmak üzere tasarlanmıştır; böylece, birden çok dosya oluşturmadan birden çok fatura depolayabilirsiniz. Önceki fatura verilerinizi analiz etmek için de Fatura İzleyicisi kullanabilirsiniz. Örneğin bir müşteriyle veya özel bir projeyle ilgili tüm faturaları görüntülemenin yanı sıra son aya, son yıla ve diğer ölçütlere göre tüm faturaları da görüntüleyebilirsiniz."]
[null,"Başlamadan önce, verilen örnek verilere göz atın. Fatura sayfasında, Fatura No’nun sağındaki hücreyi (L8 hücresi) seçin; bir açılan liste görüntülenir. Açılan oku, sonra da örnek faturayı seçin. Tüm fatura bilgilerinin seçilen faturayı yansıtacak şekilde otomatik olarak nasıl değiştiğini gözlemleyin. Şimdi de Müşteriler, Faturalar - Ana ve Fatura Ayrıntıları sayfalarına bakın. Bu sayfaların her biri Faturaya bilgi sağlar ve yaptığınız her değişiklik otomatik olarak güncelleştirilir. "]
[null,"Nasıl başlamalıyım?"]
[null,"Aşağıdaki adımları kullanarak Fatura sayfasını şirket bilgilerinizi yansıtacak şekilde değiştirin:"]
[null,"1.","Fatura sayfasına gidin, Gözden Geçir sekmesinin Koru grubunda Sayfa Korumasını Kaldır’ı seçin. "]
[null,null,"Not: Daha önce de belirtildiği gibi, Fatura sayfasındaki verilerin çoğunluğu çalışma kitabının tüm diğer sayfalarından alındığı için istenmeyen değişikliklerden korumaya yardımcı olmak amacıyla Fatura sayfası korumalıdır. "]
[null,"2.","Şirket Adı, Adres, Şehir, Posta Kodu, e-posta adresi ve web sitesi gibi bilgilerinizi yazarak fatura üst bilginizi özelleştirin. Faturanın en altındaki (43. satır) ödeme yönergelerini değiştirin. "]
[null,null,"Önemli! Faturalama veya fatura bilgilerini değiştirmeyin. Bu hücrelerin tümünde, Bu Fatura İzleyicisi Hakkında bölümünde belirtildiği gibi faturayı otomatik olarak güncelleştiren formüller bulunur.  "]
[null,"3.","(İsteğe bağlı) Çalışma kitabının tamamında renkleri değiştirin: Sayfa Düzeni sekmesinin Temalar grubunda Renkler’i seçtikten sonra renk galerisinden başka bir tema rengi belirtin. "]
[null,"İpucu: Şirket markanızla eşleşen özel bir tema rengi kümesi oluşturun. Bunu yapmak için Sayfa Düzeni sekmesinin Temalar grubunda önce Renkler’i, sonra da Renkleri Özelleştir’i seçin. Özel renk kümesi oluşturma hakkında daha fazla bilgi için şu Yardım konularına bakın: "]
[null,null,"Belge temasını özelleştirin."]
[null,"4.","İstediğiniz değişiklikleri yaptıktan sonra Fatura sayfasına dönün, Gözden Geçir sekmesinin Değişiklikler grubunda Sayfayı Koru’yu, ardından da Tamam’ı seçin. Fatura sayfası korumalı olduğunda, seçebileceğiniz tek hücre Fatura No açılan listesinin olduğu hücredir."]
[null,"Nasıl fatura oluştururum?"]
[null,"1.","Müşteriler sayfasına, şirket adı ve adresi gibi müşteri bilgilerini girin. Şirket No’nun, her şirket için Fatura İzleyicisi’nin tamamında kullanılan benzersiz bir tanımlayıcı sağladığından önemli bir girdi olduğunu unutmayın. Şirketi bir kez eklemenizin yeterli olduğunu da unutmayın. Aynı şirkete ait sonraki faturalar için bu adım atlanabilir. "]
[null,null,"Not: Birden çok Şirkete aynı numarayı atarsanız veya aynı Şirket Adını birden çok kez girerseniz, yinelenen girdi hakkında sizi uyarmak için girdiler kırmızıya dönüşür. "]
[null,"2.","Faturalar - Ana sayfasında, Fatura No, Fatura Tarihi ve Proje Açıklaması gibi faturanızla ilgili birincil bilgileri girin. Şirket No gibi Fatura No da her fatura için benzersiz bir tanımlayıcı sağladığından ve Fatura İzleyicisi’nin tamamında kullanıldığından önemli bir girdidir. Önemli bir başka girdi de Şirkettir. Sağlanan açılan listeden bir şirket seçtiğinizde faturanızı bu şirketle ilişkilendirir. Ardından, Fatura sayfasında Fatura No’yu seçtiğinizde, şirket adı ve adresi gibi bu şirketin bilgileri otomatik olarak Faturada doldurulur."]
[null,null,"Not: Birden çok Faturaya aynı numarayı atarsanız yinelenen girdi hakkında sizi uyarmak için girdiler kırmızıya dönüşür. "]
[null,"3.","Fatura Ayrıntıları sayfasına Öğe Açıklaması, Öğe No veya Birim Fiyatı gibi faturanızla ilgili ayrıntıları girin. Fatura No açılan listesi, veri girişini kolaylaştırmak için Faturalar - Ana sayfasına girmiş olduğunuz faturaların listesini sağlar. Önceki adımda yer alan Şirket No’da olduğu gibi Fatura No da bu ayrıntı öğesini belirli bir faturayla ilişkilendirir. Fatura sayfasında Fatura No açılan listesinden bir Fatura No seçtiğinizde bu faturayla ilgili fatura ayrıntısı öğeleri görüntülenir."]
[null,null,"Not: Fatura başına en fazla 25 ayrıntı öğeniz olabilir. 25'ten fazla öğe eklenirse, bu sınırlamayla ilgili olarak sizi uyarmak için ilgili girdiler kırmızıya dönüşür. 25'ten fazla fatura öğeniz varsa ikinci bir fatura oluşturmalısınız. "]
[null,"Başka müşterileri, faturaları ve fatura ayrıntılarını nasıl eklerim?"]
[null,"Müşteriler, Faturalar ve Fatura Ayrıntıları verileri Excel tablolarında depolanır. Tabloya yeni satır eklediğinizde, yeni eklenen satır otomatik olarak biçimlendirilir ve tüm hesaplamalar kopyalanır. Yeni tablo satırları eklemek için şunlardan birini yapın:"]
[null,"● ","Tabloda bir toplam satırı bulunmuyorsa, tablonun en altına yazmaya başlayın; böylece Enter veya Sekme tuşuna bastığınızda tablo otomatik olarak genişleyecektir."]
[null,"● ","Hücre işaretçinizi, son fatura için Faturalar tablosunun Notlar hücresi gibi Toplam satırının üzerinde bulunan en son hücreye getirin ve sonra Sekme tuşuna basın."]
[null,"● ","Giriş sekmesinin Hücreler grubunda Ekle’yi, sonra da Yukarıya Tablo Satırlan veya Aşağıya Tablo Satırı’nı seçin. "]
[null,"● ","Tablonun sağ alt köşesinde, farenizi boyutlandırma tutamacına getirin ve kullanılabilir tablo satırlarının sayısını artırmak için aşağı sürükleyin."]
[null,"Fatura ayrıntılarımı nasıl analiz ederim?"]
[null,"Fatura İzleyicisi Hakkında bölümünde belirtildiği gibi, çeşitli faturaları girdikten sonra belirli bir müşteriye, projeye, belirli bir tarih aralığına ve daha birçok ölçüte göre tüm faturaların bir listesini görüntüleyebilirsiniz. Bu tür analizler, veri listenizi hemen daraltmanızı sağlayan bir Filtre kullanılarak yapılır. Müşteriler, Faturalar veya Fatura Ayrıntıları tablolarında Filtre’ye erişmek için herhangi bir tablo alanı adının yanındaki açılan oku seçin. Size çeşitli filtreleme seçenekleri sunan Filtre bölmesi görüntülenir. Burada başlamanıza yardımcı olacak birkaç filtreleme örneği verilmiştir:"]
[null,"● ","Belirli bir müşteriye faturalandırdığınız toplam tutarı görüntülemek için: Faturalar - Ana sayfasında Şirket No alanının sağındaki aşağı açılan oku seçin. Filtre bölmesinde, tüm şirketlerin seçimini kaldırmak için Tümünü Seç’e tıklayın, istediğiniz şirketi belirtin ve Tamam’ı seçin. "]
[null,null,"İpucu: Filtre bölmesinde, uygun listelerde hızlı arama yapmak için Ara metin kutusuna müşteri adını yazın."]
[null,"● ","Belirli bir müşteriyle ve belirli projelerle ilgili tüm faturaları görüntülemek için: Önceki örnekte verilen adımları kullanarak istediğiniz müşteri için filtre uygulamaya başlayın. Sonra, Proje No’nun sağındaki aşağı açılan oku seçin. Filtre bölmesinde istediğiniz bir veya birden fazla projeyi belirtin ve Tamam’ı seçin. "]
[null,"● ","Önceki aya ait tüm faturaları görüntülemek için: Faturalar - Ana sayfasında, Fatura Tarihi alanını sağındaki aşağı açılan oku seçin, Tarih Filtreleri’nin üzerine gelin ve Son Ay’ı seçin."]
[null,"● ","Aynı alan koduna sahip tüm müşterileri görüntülemek için: Müşteriler sayfasında, Telefon alanının sağındaki aşağı açılan oku seçin. Filtre bölmesinde Ara metin kutusuna tıklayıp alan kodunu yazın ve Tamam’ı seçin. "]
[null,"Filtre İpuçları"]
[null,"● ","Müşteriler veya Faturalar tablosundaki gibi tablonun toplam satırı varsa hesaplanan toplamlar yalnızca filtrelenen listenizi yansıtır."]
[null,"● ","Sonuçlarınızda ince ayarlama yapmak için tek alanda veya birden fazla alanda birden çok filtre kullanın."]
[null,"● ","Tek filtreyi temizlemek için önceden filtrelenmiş bir sütunun açılan okunu, sonra da <alan adı> filtresini temizle’yi seçin."]
[null,"● ","Aynı anda birden çok filtreyi temizlemek için hücre işaretçinizi tablonun üzerine getirin, Giriş sekmesinin Düzenleme grubunda Sırala ve Filtre Uygula’yı, sonra da Temizle’yi seçin."]